[Event "FRA-ch Youth U14W 2019"]
[Site "Hyeres"]
[Date "2019.04.21"]
[Round "9.1"]
[White "Cornileau, Juliette"]
[Black "Blanquet, Camille"]
[Result "0-1"]
[ECO "D03"]
[WhiteElo "1705"]
[BlackElo "1641"]
[Annotator "NA"]
[PlyCount "118"]
[EventDate "2019.04.14"]
[EventType "swiss"]
[EventCountry "FRA"]
[SourceTitle "playchess.com"]
[Source "ChessBase"]
[SourceQuality "1"]
[TimeControl "5400+30"]

1. d4 {[%emt 0:00:00]} d5 {[%emt 0:00:00]} 2. Nf3 {[%emt 0:00:14]} Nf6 {[%emt 0:00:00]} 3. Bg5 {[%emt 0:00:58]} Ne4 {[%emt 0:01:37]} 4. Bf4 {[%emt 0:00:49]} c5 {[%emt 0:01:35]} 5. e3 {[%emt 0:00:52]} Qb6 {[%emt 0:04:37]} 6. Qc1 {[%emt 0:15:10]} Nc6 {[%emt 0:02:30]} 7. c3 {[%emt 0:00:37]} Bf5 {[%emt 0:04:11]} 8. Be2 {[%emt 0:07:12]} h6 {[%emt 0:04:27]} 9. Nbd2 {[%emt 0:10:18]} Rc8 {[%emt 0:03:01]} 10. Nxe4 {[%emt 0:08:49]} Bxe4 {[%emt 0:01:05]} 11. dxc5 {[%emt 0:01:59]} Qxc5 {[%emt 0:01:02]} 12. O-O {[%emt 0:00:29]} e6 {[%emt 0:02:45]} 13. Bg3 {[%emt 0:02:10]} Be7 {[%emt 0:03:11]} 14. Nd4 {[%emt 0:09:17]} a5 {[%emt 0:10:33]} 15. a4 {[%emt 0:01:24]} O-O {[%emt 0:01:59]} 16. Qd2 {[%emt 0:01:14]} Rfd8 {[%emt 0:03:01]} 17. Bd3 {[%emt 0:07:50]} Bf6 {[%emt 0:07:36]} 18. Nb5 {[%emt 0:04:50]} Ne5 {[%emt 0:03:53]} 19. Bxe5 {[%emt 0:02:44]} Bxe5 {[%emt 0:02:28]} 20. Rfd1 {[%emt 0:00:29]} Bxd3 {[%emt 0:04:12]} 21. Qxd3 {[%emt 0:00:05]} Qe7 {[%emt 0:01:11]} 22. Nd4 {[%emt 0:02:50]} Rc4 {[%emt 0:04:46]} 23. b3 {[%emt 0:01:03]} Rcc8 {[%emt 0:02:10]} 24. Rac1 {[%emt 0:00:51]} Bb8 {[%emt 0:03:34]} 25. g3 {[%emt 0:03:07]} h5 {[%emt 0:04:04]} 26. Qe2 {[%emt 0:03:23]} h4 {[%emt 0:01:45]} 27. Qg4 {[%emt 0:00:28]} hxg3 {[%emt 0:01:01]} 28. hxg3 {[%emt 0:00:10]} g6 {[%emt 0:01:06]} 29. Kg2 {[%emt 0:00:54]} Kg7 {[%emt 0:01:00]} 30. Rh1 {[%emt 0:01:31]} Qd7 {[%emt 0:05:47]} 31. Nf3 {[%emt 0:01:35]} e5 {[%emt 0:04:04]} 32. Qg5 {[%emt 0:01:31]} Rh8 {[%emt 0:02:48]} 33. Nxe5 {[%emt 0:02:02]} Qe6 {[%emt 0:01:46]} 34. Nf3 {[%emt 0:03:32]} f6 {[%emt 0:01:52]} 35. Nd4 {[%emt 0:02:47]} Qd7 {[%emt 0:01:08]} 36. Nf5+ {[%emt 0:00:58]} Qxf5 {[%emt 0:00:16]} 37. Qxf5 {[%emt 0:00:02]} gxf5 {[%emt 0:00:02]} 38. Rhd1 {[%emt 0:00:11]} Rhd8 {[%emt 0:00:21]} 39. Rh1 {[%emt 0:00:56]} Be5 {[%emt 0:00:39]} 40. c4 {[%emt 0:00:55]} dxc4 {[%emt 0:00:37]} 41. bxc4 {[%emt 0:00:08]} Rd2 {[%emt 0:00:54]} 42. Rh5 {[%emt 0:00:36]} Rh8 {[%emt 0:01:32]} 43. Rxf5 {[%emt 0:00:18]} Kg6 {[%emt 0:00:32]} 44. Rf3 {[%emt 0:00:42]} Ra2 {[%emt 0:00:32]} 45. Rb1 {[%emt 0:00:15]} Rb8 {[%emt 0:00:12]} 46. Rh1 {[%emt 0:01:10]} Rxa4 {[%emt 0:00:17]} 47. g4 {[%emt 0:00:12]} Rxc4 {[%emt 0:00:22]} 48. Rfh3 {[%emt 0:00:18]} Rxg4+ {[%emt 0:00:57]} 49. Kf3 {[%emt 0:00:07]} Rc4 {[%emt 0:00:29]} 50. Rh6+ {[%emt 0:00:56]} Kf7 {[%emt 0:00:05]} 51. Rh7+ {[%emt 0:00:32]} Ke6 {[%emt 0:00:04]} 52. Rb1 {[%emt 0:00:08]} Rb4 {[%emt 0:00:31]} 53. Rd1 {[%emt 0:00:22]} Bd6 {[%emt 0:00:34]} 54. e4 {[%emt 0:00:33]} a4 {[%emt 0:00:42]} 55. Ke3 {[%emt 0:00:11]} a3 {[%emt 0:00:25]} 56. f4 {[%emt 0:00:18]} Rb3+ {[%emt 0:01:35]} 57. Kd4 {[%emt 0:01:16]} Bxf4 {[%emt 0:00:50]} 58. Kc4 {[%emt 0:00:15]} Rb2 {[%emt 0:01:26]} 59. Rdd7 {[%emt 0:00:32]} Rc8+ {[%emt 0:00:21]} 0-1

[Event "FRA-ch Youth U14W 2019"]
[Site "Hyeres"]
[Date "2019.04.21"]
[Round "9.3"]
[White "Tokplo, Victoria"]
[Black "Sumarriva Paulin, Laura"]
[Result "1/2-1/2"]
[ECO "C11"]
[WhiteElo "1512"]
[BlackElo "1922"]
[Annotator "NA"]
[PlyCount "76"]
[EventDate "2019.04.14"]
[EventType "swiss"]
[EventCountry "FRA"]
[SourceTitle "playchess.com"]
[Source "ChessBase"]
[SourceQuality "1"]
[TimeControl "5400+30"]

1. e4 {[%emt 0:00:00]} e6 {[%emt 0:00:00]} 2. d4 {[%emt 0:00:00]} d5 {[%emt 0:00:00]} 3. Nc3 {[%emt 0:00:00]} Nf6 {[%emt 0:00:00]} 4. e5 {[%emt 0:00:14]} Nfd7 {[%emt 0:00:00]} 5. f4 {[%emt 0:00:30]} c5 {[%emt 0:00:08]} 6. Nf3 {[%emt 0:00:38]} Nc6 {[%emt 0:00:15]} 7. Be3 {[%emt 0:00:43]} Be7 {[%emt 0:00:31]} 8. Qd2 {[%emt 0:02:02]} O-O {[%emt 0:00:36]} 9. g3 {[%emt 0:04:07]} b6 {[%emt 0:05:39]} 10. Bg2 {[%emt 0:11:44]} Bb7 {[%emt 0:04:34]} 11. h4 {[%emt 0:04:56]} Rc8 {[%emt 0:13:27]} 12. O-O {[%emt 0:15:18]} Qc7 {[%emt 0:11:14]} 13. Ne2 {[%emt 0:04:12]} cxd4 {[%emt 0:05:22]} 14. Nfxd4 {[%emt 0:01:43]} Na5 {[%emt 0:13:29]} 15. b3 {[%emt 0:06:55]} Nc5 {[%emt 0:06:21]} 16. Nc3 {[%emt 0:16:07]} Ncxb3 {[%emt 0:04:55]} 17. cxb3 {[%emt 0:04:10]} Qxc3 {[%emt 0:00:24]} 18. Qf2 {[%emt 0:04:23]} Qc7 {[%emt 0:06:26]} 19. Rfc1 {[%emt 0:03:35]} Qd7 {[%emt 0:00:21]} 20. Bf1 {[%emt 0:00:31]} a6 {[%emt 0:15:38]} 21. Bd3 {[%emt 0:00:50]} f6 {[%emt 0:03:17]} 22. Qe2 {[%emt 0:03:01]} b5 {[%emt 0:03:17]} 23. Qh5 {[%emt 0:02:50]} f5 {[%emt 0:00:14]} 24. g4 {[%emt 0:06:10]} g6 {[%emt 0:00:57]} 25. Qh6 {[%emt 0:00:05]} Kh8 {[%emt 0:03:22]} 26. gxf5 {[%emt 0:01:37]} exf5 {[%emt 0:00:48]} 27. e6 {[%emt 0:03:21]} Qd8 {[%emt 0:00:37]} 28. Nf3 {[%emt 0:02:18]} Bf6 {[%emt 0:00:25]} 29. Ng5 {[%emt 0:00:44]} Bxg5 {[%emt 0:00:54]} 30. hxg5 {[%emt 0:00:11]} Qe7 {[%emt 0:00:52]} 31. Bd4+ {[%emt 0:01:07]} Kg8 {[%emt 0:00:04]} 32. Bf6 {[%emt 0:00:57]} Rxf6 {[%emt 0:00:09]} 33. gxf6 {[%emt 0:00:28]} Qxf6 {[%emt 0:00:04]} 34. Qh3 {[%emt 0:00:56]} Rxc1+ {[%emt 0:01:02]} 35. Rxc1 {[%emt 0:00:11]} Qxe6 {[%emt 0:00:24]} 36. Kh2 {[%emt 0:00:45]} Nc6 {[%emt 0:01:00]} 37. Qg3 {[%emt 0:00:29]} Nd4 {[%emt 0:00:36]} 38. Rc7 {[%emt 0:00:34]} Bc8 {[%emt 0:01:03]} 1/2-1/2

[Event "FRA-ch Youth U14W 2019"]
[Site "Hyeres"]
[Date "2019.04.21"]
[Round "9.4"]
[White "Amr-Tardif, Corail"]
[Black "Milojevic-Daim, Lola-Shaina"]
[Result "1/2-1/2"]
[ECO "B23"]
[WhiteElo "1617"]
[BlackElo "1486"]
[Annotator "NA"]
[PlyCount "129"]
[EventDate "2019.04.14"]
[EventType "swiss"]
[EventCountry "FRA"]
[SourceTitle "playchess.com"]
[Source "ChessBase"]
[SourceQuality "1"]
[TimeControl "5400+30"]

1. e4 {[%emt 0:00:00]} c5 {[%emt 0:00:00]} 2. Nc3 {[%emt 0:00:00]} a6 {[%emt 0:00:00]} 3. f4 {[%emt 0:00:00]} Nc6 {[%emt 0:00:26]} 4. Nf3 {[%emt 0:00:23]} e6 {[%emt 0:00:40]} 5. d3 {[%emt 0:01:15]} d5 {[%emt 0:01:03]} 6. exd5 {[%emt 0:01:30]} exd5 {[%emt 0:00:14]} 7. d4 {[%emt 0:01:36]} c4 {[%emt 0:03:22]} 8. Ne5 {[%emt 0:05:52]} Bb4 {[%emt 0:05:03]} 9. g3 {[%emt 0:14:50]} Nf6 {[%emt 0:09:36]} 10. Nxc6 {[%emt 0:05:44]} bxc6 {[%emt 0:01:18]} 11. Qe2+ {[%emt 0:05:10]} Ne4 {[%emt 0:09:09]} 12. Bd2 {[%emt 0:04:41]} Bxc3 {[%emt 0:02:35]} 13. Bxc3 {[%emt 0:00:17]} O-O {[%emt 0:00:22]} 14. Qf3 {[%emt 0:03:10]} Re8 {[%emt 0:02:27]} 15. O-O-O {[%emt 0:01:36]} Rb8 {[%emt 0:02:40]} 16. Bg2 {[%emt 0:04:11]} Bf5 {[%emt 0:04:38]} 17. g4 {[%emt 0:03:14]} Nxc3 {[%emt 0:02:22]} 18. bxc3 {[%emt 0:06:16]} Be4 {[%emt 0:00:32]} 19. Qf2 {[%emt 0:01:09]} Qa5 {[%emt 0:01:12]} 20. Bxe4 {[%emt 0:00:56]} dxe4 {[%emt 0:00:22]} 21. Qe3 {[%emt 0:01:58]} Qxa2 {[%emt 0:04:35]} 22. Kd2 {[%emt 0:00:37]} Rb2 {[%emt 0:02:23]} 23. Rc1 {[%emt 0:00:07]} Qa4 {[%emt 0:03:49]} 24. Rhe1 {[%emt 0:03:51]} Qb5 {[%emt 0:03:25]} 25. f5 {[%emt 0:04:46]} Qd5 {[%emt 0:05:16]} 26. Qf4 {[%emt 0:04:24]} c5 {[%emt 0:02:43]} 27. Qf2 {[%emt 0:02:34]} cxd4 {[%emt 0:05:43]} 28. cxd4 {[%emt 0:06:00]} Qa5+ {[%emt 0:04:23]} 29. Ke3 {[%emt 0:06:57]} Qc3+ {[%emt 0:07:25]} 30. Kf4 {[%emt 0:00:07]} e3 {[%emt 0:01:35]} 31. Rxe3 {[%emt 0:02:02]} Qxd4+ {[%emt 0:00:10]} 32. Kf3 {[%emt 0:00:07]} Qd5+ {[%emt 0:02:21]} 33. Kg3 {[%emt 0:03:19]} Qd6+ {[%emt 0:03:55]} 34. Kf3 {[%emt 0:01:21]} Qc6+ {[%emt 0:02:05]} 35. Kg3 {[%emt 0:02:57]} Re4 {[%emt 0:02:25]} 36. Rxe4 {[%emt 0:02:06]} Qxe4 {[%emt 0:00:06]} 37. Qf3 {[%emt 0:00:31]} Qxf3+ {[%emt 0:00:41]} 38. Kxf3 {[%emt 0:00:07]} Kf8 {[%emt 0:00:05]} 39. Ke4 {[%emt 0:00:31]} a5 {[%emt 0:00:16]} 40. h3 {[%emt 0:00:54]} a4 {[%emt 0:03:29]} 41. Kd4 {[%emt 0:00:47]} a3 {[%emt 0:00:28]} 42. Kc3 {[%emt 0:00:43]} Rb6 {[%emt 0:01:22]} 43. Ra1 {[%emt 0:00:48]} Ra6 {[%emt 0:01:13]} 44. Kxc4 {[%emt 0:00:24]} Ke7 {[%emt 0:01:27]} 45. Kb3 {[%emt 0:00:47]} g6 {[%emt 0:01:31]} 46. fxg6 {[%emt 0:00:38]} hxg6 {[%emt 0:00:06]} 47. Rxa3 {[%emt 0:00:48]} Rb6+ {[%emt 0:01:03]} 48. Kc4 {[%emt 0:00:23]} Rc6+ {[%emt 0:00:04]} 49. Kd3 {[%emt 0:00:06]} f5 {[%emt 0:00:08]} 50. gxf5 {[%emt 0:00:50]} gxf5 {[%emt 0:00:02]} 51. Ra4 {[%emt 0:00:36]} Kf6 {[%emt 0:00:14]} 52. Rf4 {[%emt 0:00:49]} Kg5 {[%emt 0:00:15]} 53. Rf2 {[%emt 0:00:24]} f4 {[%emt 0:00:42]} 54. Ke4 {[%emt 0:00:30]} Rc4+ {[%emt 0:00:14]} 55. Ke5 {[%emt 0:00:32]} Rc5+ {[%emt 0:00:18]} 56. Kd4 {[%emt 0:00:27]} Rc6 {[%emt 0:00:21]} 57. c4 {[%emt 0:00:46]} Rf6 {[%emt 0:00:31]} 58. Ke5 {[%emt 0:00:56]} f3 {[%emt 0:00:44]} 59. Ke4 {[%emt 0:00:31]} Rf4+ {[%emt 0:00:07]} 60. Kd3 {[%emt 0:00:37]} Kh4 {[%emt 0:00:31]} 61. Ke3 {[%emt 0:00:29]} Rxc4 {[%emt 0:00:44]} 62. Rf1 {[%emt 0:00:32]} Rc3+ {[%emt 0:00:26]} 63. Kf4 {[%emt 0:00:26]} Kxh3 {[%emt 0:01:25]} 64. Rxf3+ {[%emt 0:01:05]} Rxf3+ {[%emt 0:00:06]} 65. Kxf3 {[%emt 0:00:00]} 1/2-1/2